Workbook

Sheet ใบแสดงรายการผลกำไรและขาดทุน
B1: ใบแสดงกำไรและขาดทุน
D3: งวดก่อน | E3: งบประมาณ | F3: งวดปัจจุบัน | H3: งวดปัจจุบันแบบ % ของการขาย | I3: % ที่เปลี่ยนแปลงจากงวดก่อนหน้า | J3: % ที่เปลี่ยนแปลงจากงบประมาณ
B4: รายได้จากการขาย
B5: สินค้า/บริการ 1 | D5: 40 | E5: 50 | F5: 45 | H5: =IFERROR(รายได้จากการขาย[[#This Row],[Current Period]]/SUBTOTAL(109,รายได้จากการขาย[Current Period]),0) -> 100.0% | I5: =IFERROR(รายได้จากการขาย[[#This Row],[Current Period]]/รายได้จากการขาย[[#This Row],[Prior Period]]-1,0) -> 12.5% | J5: =IFERROR(รายได้จากการขาย[[#This Row],[Current Period]]/รายได้จากการขาย[[#This Row],[Budget]]-1,0) -> -10.0%
B6: สินค้า/บริการ 2 | H6: =IFERROR(รายได้จากการขาย[[#This Row],[Current Period]]/SUBTOTAL(109,รายได้จากการขาย[Current Period]),0) -> 0 | I6: =IFERROR(รายได้จากการขาย[[#This Row],[Current Period]]/รายได้จากการขาย[[#This Row],[Prior Period]]-1,0) -> 0 | J6: =IFERROR(รายได้จากการขาย[[#This Row],[Current Period]]/รายได้จากการขาย[[#This Row],[Budget]]-1,0) -> 0
B7: สินค้า/บริการ 3 | H7: =IFERROR(รายได้จากการขาย[[#This Row],[Current Period]]/SUBTOTAL(109,รายได้จากการขาย[Current Period]),0) -> 0 | I7: =IFERROR(รายได้จากการขาย[[#This Row],[Current Period]]/รายได้จากการขาย[[#This Row],[Prior Period]]-1,0) -> 0 | J7: =IFERROR(รายได้จากการขาย[[#This Row],[Current Period]]/รายได้จากการขาย[[#This Row],[Budget]]-1,0) -> 0
B8: สินค้า/บริการ 4 | H8: =IFERROR(รายได้จากการขาย[[#This Row],[Current Period]]/SUBTOTAL(109,รายได้จากการขาย[Current Period]),0) -> 0 | I8: =IFERROR(รายได้จากการขาย[[#This Row],[Current Period]]/รายได้จากการขาย[[#This Row],[Prior Period]]-1,0) -> 0 | J8: =IFERROR(รายได้จากการขาย[[#This Row],[Current Period]]/รายได้จากการขาย[[#This Row],[Budget]]-1,0) -> 0
B9: ผลรวม | D9: =SUBTOTAL(109,รายได้จากการขาย[Prior Period]) -> 40 | E9: =SUBTOTAL(109,รายได้จากการขาย[Budget]) -> 50 | F9: =SUBTOTAL(109,รายได้จากการขาย[Current Period]) -> 45 | H9: =IFERROR(รายได้จากการขาย[[#Totals],[Current Period]]/รายได้จากการขาย[[#Totals],[Current Period]],0) -> 100.0% | I9: =IFERROR(รายได้จากการขาย[[#Totals],[Current Period]]/รายได้จากการขาย[[#Totals],[Prior Period]]-1,0) -> 12.5% | J9: =IFERROR(รายได้จากการขาย[[#Totals],[Current Period]]/รายได้จากการขาย[[#Totals],[Budget]]-1,0) -> -10.0%
B11: ต้นทุนการขาย
B12: สินค้า/บริการ 1 | E12: 2 | F12: 3 | H12: =IFERROR(ต้นทุนขาย[[#This Row],[Current Period]]/SUBTOTAL(109,รายได้จากการขาย[Current Period]),0) -> 6.7% | I12: =IFERROR(ต้นทุนขาย[[#This Row],[Current Period]]/ต้นทุนขาย[[#This Row],[Prior Period]]-1,0) -> 0 | J12: =IFERROR(ต้นทุนขาย[[#This Row],[Current Period]]/ต้นทุนขาย[[#This Row],[Budget]]-1,0) -> 50.0%
B13: สินค้า/บริการ 2 | E13: 5 | F13: 3 | H13: =IFERROR(ต้นทุนขาย[[#This Row],[Current Period]]/SUBTOTAL(109,รายได้จากการขาย[Current Period]),0) -> 6.7% | I13: =IFERROR(ต้นทุนขาย[[#This Row],[Current Period]]/ต้นทุนขาย[[#This Row],[Prior Period]]-1,0) -> 0 | J13: =IFERROR(ต้นทุนขาย[[#This Row],[Current Period]]/ต้นทุนขาย[[#This Row],[Budget]]-1,0) -> -40.0%
B14: สินค้า/บริการ 3 | F14: 1 | H14: =IFERROR(ต้นทุนขาย[[#This Row],[Current Period]]/SUBTOTAL(109,รายได้จากการขาย[Current Period]),0) -> 2.2% | I14: =IFERROR(ต้นทุนขาย[[#This Row],[Current Period]]/ต้นทุนขาย[[#This Row],[Prior Period]]-1,0) -> 0 | J14: =IFERROR(ต้นทุนขาย[[#This Row],[Current Period]]/ต้นทุนขาย[[#This Row],[Budget]]-1,0) -> 0
B15: สินค้า/บริการ 4 | H15: =IFERROR(ต้นทุนขาย[[#This Row],[Current Period]]/SUBTOTAL(109,รายได้จากการขาย[Current Period]),0) -> 0 | I15: =IFERROR(ต้นทุนขาย[[#This Row],[Current Period]]/ต้นทุนขาย[[#This Row],[Prior Period]]-1,0) -> 0 | J15: =IFERROR(ต้นทุนขาย[[#This Row],[Current Period]]/ต้นทุนขาย[[#This Row],[Budget]]-1,0) -> 0
B16: ผลรวม | D16: =SUBTOTAL(109,ต้นทุนขาย[Prior Period]) -> 0 | E16: =SUBTOTAL(109,ต้นทุนขาย[Budget]) -> 7 | F16: =SUBTOTAL(109,ต้นทุนขาย[Current Period]) -> 7 | H16: =IFERROR(ต้นทุนขาย[[#Totals],[Current Period]]/SUBTOTAL(109,รายได้จากการขาย[Current Period]),0) -> 15.6% | I16: =IFERROR(ต้นทุนขาย[[#Totals],[Current Period]]/ต้นทุนขาย[[#Totals],[Prior Period]]-1,0) -> 0 | J16: =IFERROR(ต้นทุนขาย[[#Totals],[Current Period]]/ต้นทุนขาย[[#Totals],[Budget]]-1,0) -> 0
B18: กำไรขั้นต้น | D18: =SUM(รายได้จากการขาย[Prior Period])-SUM(ต้นทุนขาย[Prior Period]) -> 40 | E18: =SUM(รายได้จากการขาย[Budget])-SUM(ต้นทุนขาย[Budget]) -> 43 | F18: =SUM(รายได้จากการขาย[Current Period])-SUM(ต้นทุนขาย[Current Period]) -> 38 | H18: =IFERROR(F18/SUBTOTAL(109,รายได้จากการขาย[Current Period]),0) -> 84.4% | I18: =IFERROR(F18/D18-1,0) -> -5.0% | J18: =IFERROR(F18/E18-1,0) -> -11.6%
B20: ค่าใช้จ่ายในการดำเนินงาน: การขายและการตลาด
B21: การโฆษณา | E21: 22 | F21: 19 | H21: =IFERROR(การขายและการตลาด[[#This Row],[Current Period]]/SUBTOTAL(109,รายได้จากการขาย[Current Period]),0) -> 42.2% | I21: =IFERROR(การขายและการตลาด[[#This Row],[Current Period]]/การขายและการตลาด[[#This Row],[Prior Period]]-1,0) -> 0 | J21: =IFERROR(การขายและการตลาด[[#This Row],[Current Period]]/การขายและการตลาด[[#This Row],[Budget]]-1,0) -> -13.6%
B22: การตลาดทางตรง | H22: =IFERROR(การขายและการตลาด[[#This Row],[Current Period]]/SUBTOTAL(109,รายได้จากการขาย[Current Period]),0) -> 0 | I22: =IFERROR(การขายและการตลาด[[#This Row],[Current Period]]/การขายและการตลาด[[#This Row],[Prior Period]]-1,0) -> 0 | J22: =IFERROR(การขายและการตลาด[[#This Row],[Current Period]]/การขายและการตลาด[[#This Row],[Budget]]-1,0) -> 0
B23: ค่าใช้จ่ายอื่นๆ (ระบุ) | H23: =IFERROR(การขายและการตลาด[[#This Row],[Current Period]]/SUBTOTAL(109,รายได้จากการขาย[Current Period]),0) -> 0 | I23: =IFERROR(การขายและการตลาด[[#This Row],[Current Period]]/การขายและการตลาด[[#This Row],[Prior Period]]-1,0) -> 0 | J23: =IFERROR(การขายและการตลาด[[#This Row],[Current Period]]/การขายและการตลาด[[#This Row],[Budget]]-1,0) -> 0
B24: ผลรวม | D24: =SUBTOTAL(109,การขายและการตลาด[Prior Period]) -> 0 | E24: =SUBTOTAL(109,การขายและการตลาด[Budget]) -> 22 | F24: =SUBTOTAL(109,การขายและการตลาด[Current Period]) -> 19 | H24: =IFERROR(การขายและการตลาด[[#Totals],[Current Period]]/SUBTOTAL(109,รายได้จากการขาย[Current Period]),0) -> 42.2% | I24: =IFERROR(การขายและการตลาด[[#Totals],[Current Period]]/การขายและการตลาด[[#Totals],[Prior Period]]-1,0) -> 0 | J24: =IFERROR(การขายและการตลาด[[#Totals],[Current Period]]/การขายและการตลาด[[#Totals],[Budget]]-1,0) -> -13.6%
B26: ค่าใช้จ่ายในการดำเนินงาน: ทั่วไปและการบริหาร
B27: ค่าจ้างและเงินเดือน | E27: 56 | F27: 51 | H27: =IFERROR(ทั่วไปและการจัดการ[[#This Row],[Current Period]]/SUBTOTAL(109,รายได้จากการขาย[Current Period]),0) -> 113.3% | I27: =IFERROR(ทั่วไปและการจัดการ[[#This Row],[Current Period]]/ทั่วไปและการจัดการ[[#This Row],[Prior Period]]-1,0) -> 0 | J27: =IFERROR(ทั่วไปและการจัดการ[[#This Row],[Current Period]]/ทั่วไปและการจัดการ[[#This Row],[Budget]]-1,0) -> -8.9%
B28: บริการภายนอก | H28: =IFERROR(ทั่วไปและการจัดการ[[#This Row],[Current Period]]/SUBTOTAL(109,รายได้จากการขาย[Current Period]),0) -> 0 | I28: =IFERROR(ทั่วไปและการจัดการ[[#This Row],[Current Period]]/ทั่วไปและการจัดการ[[#This Row],[Prior Period]]-1,0) -> 0 | J28: =IFERROR(ทั่วไปและการจัดการ[[#This Row],[Current Period]]/ทั่วไปและการจัดการ[[#This Row],[Budget]]-1,0) -> 0
B29: อุปกรณ์ | H29: =IFERROR(ทั่วไปและการจัดการ[[#This Row],[Current Period]]/SUBTOTAL(109,รายได้จากการขาย[Current Period]),0) -> 0 | I29: =IFERROR(ทั่วไปและการจัดการ[[#This Row],[Current Period]]/ทั่วไปและการจัดการ[[#This Row],[Prior Period]]-1,0) -> 0 | J29: =IFERROR(ทั่วไปและการจัดการ[[#This Row],[Current Period]]/ทั่วไปและการจัดการ[[#This Row],[Budget]]-1,0) -> 0
B30: อาหารและความบันเทิง | H30: =IFERROR(ทั่วไปและการจัดการ[[#This Row],[Current Period]]/SUBTOTAL(109,รายได้จากการขาย[Current Period]),0) -> 0 | I30: =IFERROR(ทั่วไปและการจัดการ[[#This Row],[Current Period]]/ทั่วไปและการจัดการ[[#This Row],[Prior Period]]-1,0) -> 0 | J30: =IFERROR(ทั่วไปและการจัดการ[[#This Row],[Current Period]]/ทั่วไปและการจัดการ[[#This Row],[Budget]]-1,0) -> 0
B31: ค่าเช่า | H31: =IFERROR(ทั่วไปและการจัดการ[[#This Row],[Current Period]]/SUBTOTAL(109,รายได้จากการขาย[Current Period]),0) -> 0 | I31: =IFERROR(ทั่วไปและการจัดการ[[#This Row],[Current Period]]/ทั่วไปและการจัดการ[[#This Row],[Prior Period]]-1,0) -> 0 | J31: =IFERROR(ทั่วไปและการจัดการ[[#This Row],[Current Period]]/ทั่วไปและการจัดการ[[#This Row],[Budget]]-1,0) -> 0
B32: โทรศัพท์ | H32: =IFERROR(ทั่วไปและการจัดการ[[#This Row],[Current Period]]/SUBTOTAL(109,รายได้จากการขาย[Current Period]),0) -> 0 | I32: =IFERROR(ทั่วไปและการจัดการ[[#This Row],[Current Period]]/ทั่วไปและการจัดการ[[#This Row],[Prior Period]]-1,0) -> 0 | J32: =IFERROR(ทั่วไปและการจัดการ[[#This Row],[Current Period]]/ทั่วไปและการจัดการ[[#This Row],[Budget]]-1,0) -> 0
B33: อรรถประโยชน์ | H33: =IFERROR(ทั่วไปและการจัดการ[[#This Row],[Current Period]]/SUBTOTAL(109,รายได้จากการขาย[Current Period]),0) -> 0 | I33: =IFERROR(ทั่วไปและการจัดการ[[#This Row],[Current Period]]/ทั่วไปและการจัดการ[[#This Row],[Prior Period]]-1,0) -> 0 | J33: =IFERROR(ทั่วไปและการจัดการ[[#This Row],[Current Period]]/ทั่วไปและการจัดการ[[#This Row],[Budget]]-1,0) -> 0
B34: ค่าเสื่อมราคา | H34: =IFERROR(ทั่วไปและการจัดการ[[#This Row],[Current Period]]/SUBTOTAL(109,รายได้จากการขาย[Current Period]),0) -> 0 | I34: =IFERROR(ทั่วไปและการจัดการ[[#This Row],[Current Period]]/ทั่วไปและการจัดการ[[#This Row],[Prior Period]]-1,0) -> 0 | J34: =IFERROR(ทั่วไปและการจัดการ[[#This Row],[Current Period]]/ทั่วไปและการจัดการ[[#This Row],[Budget]]-1,0) -> 0
B35: ค่าประกัน | H35: =IFERROR(ทั่วไปและการจัดการ[[#This Row],[Current Period]]/SUBTOTAL(109,รายได้จากการขาย[Current Period]),0) -> 0 | I35: =IFERROR(ทั่วไปและการจัดการ[[#This Row],[Current Period]]/ทั่วไปและการจัดการ[[#This Row],[Prior Period]]-1,0) -> 0 | J35: =IFERROR(ทั่วไปและการจัดการ[[#This Row],[Current Period]]/ทั่วไปและการจัดการ[[#This Row],[Budget]]-1,0) -> 0
B36: ซ่อมแซมและบำรุงรักษา | H36: =IFERROR(ทั่วไปและการจัดการ[[#This Row],[Current Period]]/SUBTOTAL(109,รายได้จากการขาย[Current Period]),0) -> 0 | I36: =IFERROR(ทั่วไปและการจัดการ[[#This Row],[Current Period]]/ทั่วไปและการจัดการ[[#This Row],[Prior Period]]-1,0) -> 0 | J36: =IFERROR(ทั่วไปและการจัดการ[[#This Row],[Current Period]]/ทั่วไปและการจัดการ[[#This Row],[Budget]]-1,0) -> 0
B37: ค่าใช้จ่ายอื่นๆ (ระบุ) | H37: =IFERROR(ทั่วไปและการจัดการ[[#This Row],[Current Period]]/SUBTOTAL(109,รายได้จากการขาย[Current Period]),0) -> 0 | I37: =IFERROR(ทั่วไปและการจัดการ[[#This Row],[Current Period]]/ทั่วไปและการจัดการ[[#This Row],[Prior Period]]-1,0) -> 0 | J37: =IFERROR(ทั่วไปและการจัดการ[[#This Row],[Current Period]]/ทั่วไปและการจัดการ[[#This Row],[Budget]]-1,0) -> 0
B38: ผลรวม | D38: =SUBTOTAL(109,ทั่วไปและการจัดการ[Prior Period]) -> 0 | E38: =SUBTOTAL(109,ทั่วไปและการจัดการ[Budget]) -> 56 | F38: =SUBTOTAL(109,ทั่วไปและการจัดการ[Current Period]) -> 51 | H38: =IFERROR(ทั่วไปและการจัดการ[[#Totals],[Current Period]]/SUBTOTAL(109,รายได้จากการขาย[Current Period]),0) -> 113.3% | I38: =IFERROR(ทั่วไปและการจัดการ[[#Totals],[Current Period]]/ทั่วไปและการจัดการ[[#Totals],[Prior Period]]-1,0) -> 0 | J38: =IFERROR(ทั่วไปและการจัดการ[[#Totals],[Current Period]]/ทั่วไปและการจัดการ[[#Totals],[Budget]]-1,0) -> -8.9%
B40: ค่าใช้จ่ายในการดำเนินงาน: อื่นๆ
B41: ค่าใช้จ่ายในการดำเนินงานอื่นๆ 1 | E41: 10 | H41: =IFERROR(ค่าใช้จ่ายจากการดำเนินงานประเภทอื่น[[#This Row],[Current Period]]/SUBTOTAL(109,รายได้จากการขาย[Current Period]),0) -> 0 | I41: =IFERROR(ค่าใช้จ่ายจากการดำเนินงานประเภทอื่น[[#This Row],[Current Period]]/ค่าใช้จ่ายจากการดำเนินงานประเภทอื่น[[#This Row],[Prior Period]]-1,0) -> 0 | J41: =IFERROR(ค่าใช้จ่ายจากการดำเนินงานประเภทอื่น[[#This Row],[Current Period]]/ค่าใช้จ่ายจากการดำเนินงานประเภทอื่น[[#This Row],[Budget]]-1,0) -> -100.0%
B42: ค่าใช้จ่ายในการดำเนินงานอื่นๆ 2 | H42: =IFERROR(ค่าใช้จ่ายจากการดำเนินงานประเภทอื่น[[#This Row],[Current Period]]/SUBTOTAL(109,รายได้จากการขาย[Current Period]),0) -> 0 | I42: =IFERROR(ค่าใช้จ่ายจากการดำเนินงานประเภทอื่น[[#This Row],[Current Period]]/ค่าใช้จ่ายจากการดำเนินงานประเภทอื่น[[#This Row],[Prior Period]]-1,0) -> 0 | J42: =IFERROR(ค่าใช้จ่ายจากการดำเนินงานประเภทอื่น[[#This Row],[Current Period]]/ค่าใช้จ่ายจากการดำเนินงานประเภทอื่น[[#This Row],[Budget]]-1,0) -> 0
B43: ผลรวม | D43: =SUBTOTAL(109,ค่าใช้จ่ายจากการดำเนินงานประเภทอื่น[Prior Period]) -> 0 | E43: =SUBTOTAL(109,ค่าใช้จ่ายจากการดำเนินงานประเภทอื่น[Budget]) -> 10 | F43: =SUBTOTAL(109,ค่าใช้จ่ายจากการดำเนินงานประเภทอื่น[Current Period]) -> 0 | H43: =IFERROR(ค่าใช้จ่ายจากการดำเนินงานประเภทอื่น[[#Totals],[Current Period]]/SUBTOTAL(109,รายได้จากการขาย[Current Period]),0) -> 0 | I43: =IFERROR(ค่าใช้จ่ายจากการดำเนินงานประเภทอื่น[[#Totals],[Current Period]]/ค่าใช้จ่ายจากการดำเนินงานประเภทอื่น[[#Totals],[Prior Period]]-1,0) -> 0 | J43: =IFERROR(ค่าใช้จ่ายจากการดำเนินงานประเภทอื่น[[#Totals],[Current Period]]/ค่าใช้จ่ายจากการดำเนินงานประเภทอื่น[[#Totals],[Budget]]-1,0) -> -100.0%
B45: ผลรวมค่าใช้จ่ายในการดำเนินงาน | D45: =SUM(การขายและการตลาด[Prior Period],ทั่วไปและการจัดการ[Prior Period],ค่าใช้จ่ายจากการดำเนินงานประเภทอื่น[Prior Period]) -> 0 | E45: =SUM(การขายและการตลาด[Budget],ทั่วไปและการจัดการ[Budget],ค่าใช้จ่ายจากการดำเนินงานประเภทอื่น[Budget]) -> 88 | F45: =SUM(การขายและการตลาด[Current Period],ทั่วไปและการจัดการ[Current Period],ค่าใช้จ่ายจากการดำเนินงานประเภทอื่น[Current Period]) -> 70 | H45: =IFERROR(F45/SUBTOTAL(109,รายได้จากการขาย[Current Period]),0) -> 155.6% | I45: =IFERROR(F45/D45-1,0) -> 0 | J45: =IFERROR(F45/E45-1,0) -> -20.5%
B47: รายได้จากการดำเนินงาน | D47: =D18-D45 -> 40 | E47: =E18-E45 -> -45 | F47: =F18-F45 -> -32 | H47: =IFERROR(F47/SUBTOTAL(109,รายได้จากการขาย[Current Period]),0) -> -71.1% | I47: =IFERROR(IF(D47=F47,0,IF(F47>D47,ABS((F47/D47)-1),IF(AND(F47<D47,D47<0),-((F47/D47)-1),(F47/D47)-1))),0) -> -180.0% | J47: =IFERROR(IF(E47=F47,0,IF(F47>E47,ABS((F47/E47)-1),IF(AND(F47<E47,E47<0),-((F47/E47)-1),(F47/E47)-1))),0) -> 28.9%
B49: รายได้อื่นๆ | H49: =IFERROR(F49/SUBTOTAL(109,รายได้จากการขาย[Current Period]),0) -> 0 | I49: =IFERROR(F49/D49-1,0) -> 0 | J49: =IFERROR(F49/E49-1,0) -> 0
B51: ภาษี
B52: ภาษีเงินได้ | E52: 32 | F52: 30 | H52: =IFERROR(ภาษี[[#This Row],[Current Period]]/SUBTOTAL(109,รายได้จากการขาย[Current Period]),0) -> 66.7% | I52: =IFERROR(ภาษี[[#This Row],[Current Period]]/ภาษี[[#This Row],[Prior Period]]-1,0) -> 0 | J52: =IFERROR(ภาษี[[#This Row],[Current Period]]/ภาษี[[#This Row],[Budget]]-1,0) -> -6.3%
B53: ภาษีเงินเดือน | H53: =IFERROR(ภาษี[[#This Row],[Current Period]]/SUBTOTAL(109,รายได้จากการขาย[Current Period]),0) -> 0 | I53: =IFERROR(ภาษี[[#This Row],[Current Period]]/ภาษี[[#This Row],[Prior Period]]-1,0) -> 0 | J53: =IFERROR(ภาษี[[#This Row],[Current Period]]/ภาษี[[#This Row],[Budget]]-1,0) -> 0
B54: ภาษีโรงเริอน | H54: =IFERROR(ภาษี[[#This Row],[Current Period]]/SUBTOTAL(109,รายได้จากการขาย[Current Period]),0) -> 0 | I54: =IFERROR(ภาษี[[#This Row],[Current Period]]/ภาษี[[#This Row],[Prior Period]]-1,0) -> 0 | J54: =IFERROR(ภาษี[[#This Row],[Current Period]]/ภาษี[[#This Row],[Budget]]-1,0) -> 0
B55: ภาษีอื่นๆ (ระบุ) | H55: =IFERROR(ภาษี[[#This Row],[Current Period]]/SUBTOTAL(109,รายได้จากการขาย[Current Period]),0) -> 0 | I55: =IFERROR(ภาษี[[#This Row],[Current Period]]/ภาษี[[#This Row],[Prior Period]]-1,0) -> 0 | J55: =IFERROR(ภาษี[[#This Row],[Current Period]]/ภาษี[[#This Row],[Budget]]-1,0) -> 0
B56: ผลรวม | D56: =SUBTOTAL(109,ภาษี[Prior Period]) -> 0 | E56: =SUBTOTAL(109,ภาษี[Budget]) -> 32 | F56: =SUBTOTAL(109,ภาษี[Current Period]) -> 30 | H56: =IFERROR(ภาษี[[#Totals],[Current Period]]/SUBTOTAL(109,รายได้จากการขาย[Current Period]),0) -> 66.7% | I56: =IFERROR(ภาษี[[#Totals],[Current Period]]/ภาษี[[#Totals],[Prior Period]]-1,0) -> 0 | J56: =IFERROR(ภาษี[[#Totals],[Current Period]]/ภาษี[[#Totals],[Budget]]-1,0) -> -6.3%
B58: กำไรสุทธิ | D58: =D47+D49-ภาษี[[#Totals],[Prior Period]] -> 40 | E58: =E47+E49-ภาษี[[#Totals],[Prior Period]] -> -45 | F58: =F47+F49-ภาษี[[#Totals],[Prior Period]] -> -32 | H58: =IFERROR(F58/SUBTOTAL(109,รายได้จากการขาย[Current Period]),0) -> -71.1% | I58: =IFERROR(IF(D58=F58,0,IF(F58>D58,ABS((F58/D58)-1),IF(AND(F58<D58,D58<0),-((F58/D58)-1),(F58/D58)-1))),0) -> -180.0% | J58: =IFERROR(IF(E58=F58,0,IF(F58>E58,ABS((F58/E58)-1),IF(AND(F58<E58,E58<0),-((F58/E58)-1),(F58/E58)-1))),0) -> 28.9%
B59: กำไรขั้นต้น | D59: =D18/SUM(รายได้จากการขาย[Prior Period]) -> 100.0% | E59: =E18/SUM(รายได้จากการขาย[Budget]) -> 86.0% | F59: =F18/SUM(รายได้จากการขาย[Current Period]) -> 84.4%
B60: อัตราผลตอบแทนจากการขาย | D60: =D58/SUM(รายได้จากการขาย[Prior Period]) -> 100.0% | E60: =E58/SUM(รายได้จากการขาย[Budget]) -> -90.0% | F60: =F58/SUM(รายได้จากการขาย[Current Period]) -> -71.1%
